[Event "December 5 Early 2023"]
[Site "https://www.chess.com"]
[Date "2023.12.05"]
[Round "4"]
[White "Zhurbinsky, David"]
[Black "Ljukin, Sergei"]
[Result "0-1"]
[Board "123"]
[TimeControl "180+1"]
[WhiteFideId "2072904"]
[BlackFideId "14102200"]
[WhiteElo "2619"]
[BlackElo "2464"]
[WhiteTeam "USA"]
[BlackTeam "UKR"]
[WhiteClock "0:00:18"]
[BlackClock "0:00:15"]

1. e4 {[%clk 0:02:58]}  e6 {[%clk 0:03:00]} 2. d4 {[%clk 0:02:58]}  d5 {[%clk 0:03:00]} 3. Nc3 {[%clk 0:02:58]}  Bb4 {[%clk 0:03:00]} 4. e5 {[%clk 0:02:59]}  Ne7 {[%clk 0:03:00]} 5. Qg4 {[%clk 0:02:55]}  c5 {[%clk 0:02:59]} 6. a3 {[%clk 0:02:48]}  Bxc3+ {[%clk 0:02:59]} 7. bxc3 {[%clk 0:02:48]}  Qc7 {[%clk 0:03:00]} 8. Qxg7 {[%clk 0:02:46]}  Rg8 {[%clk 0:03:00]} 9. Qxh7 {[%clk 0:02:47]}  cxd4 {[%clk 0:03:00]} 10. Ne2 {[%clk 0:02:27]}  Nbc6 {[%clk 0:02:58]} 11. Bf4 {[%clk 0:02:22]}  dxc3 {[%clk 0:02:43]} 12. Nxc3 {[%clk 0:02:16]}  Nxe5 {[%clk 0:02:16]} 13. Nb5 {[%clk 0:02:06]}  Nf3+ {[%clk 0:02:16]} 14. gxf3 {[%clk 0:02:04]}  Qxf4 {[%clk 0:02:16]} 15. Rd1 {[%clk 0:01:43]}  a6 {[%clk 0:02:14]} 16. Nd4 {[%clk 0:01:37]}  Bd7 {[%clk 0:02:04]} 17. Qd3 {[%clk 0:01:27]}  O-O-O {[%clk 0:01:55]} 18. Qc3+ {[%clk 0:01:26]}  Kb8 {[%clk 0:01:39]} 19. Qc5 {[%clk 0:01:06]}  Nc6 {[%clk 0:01:17]} 20. Bxa6 {[%clk 0:00:49]}  Nxd4 {[%clk 0:00:20]} 21. Rxd4 {[%clk 0:00:50]}  Qc7 {[%clk 0:00:16]} 22. Qb4 {[%clk 0:00:48]}  Bc6 {[%clk 0:00:14]} 23. Ke2 {[%clk 0:00:42]}  e5 {[%clk 0:00:13]} 24. Rd2 {[%clk 0:00:32]}  Kc8 {[%clk 0:00:11]} 25. Bd3 {[%clk 0:00:30]}  e4 {[%clk 0:00:11]} 26. fxe4 {[%clk 0:00:20]}  dxe4 {[%clk 0:00:11]} 27. Bc4 {[%clk 0:00:20]}  Rxd2+ {[%clk 0:00:09]} 28. Qxd2 {[%clk 0:00:20]}  e3 {[%clk 0:00:07]} 29. Qd3 {[%clk 0:00:04]}  Bxh1 {[%clk 0:00:07]} 30. Qf5+ {[%clk 0:00:05]}  Kb8 {[%clk 0:00:07]} 31. fxe3 {[%clk 0:00:04]}  Bc6 {[%clk 0:00:07]} 32. h4 {[%clk 0:00:03]}  Rg2+ {[%clk 0:00:07]} 33. Kd3 {[%clk 0:00:02]}  Qd7+ {[%clk 0:00:07]} 34. Qxd7 {[%clk 0:00:02]}  Bxd7 {[%clk 0:00:07]} 35. h5 {[%clk 0:00:03]}  Be6 {[%clk 0:00:07]} 36. Bb5 {[%clk 0:00:02]}  Rh2 {[%clk 0:00:07]} 37. h6 {[%clk 0:00:02]}  Rxh6 {[%clk 0:00:07]} 38. c4 {[%clk 0:00:03]}  Rh4 {[%clk 0:00:08]} 39. a4 {[%clk 0:00:04]}  Bf5+ {[%clk 0:00:08]} 40. Kc3 {[%clk 0:00:04]}  Kc7 {[%clk 0:00:09]} 41. a5 {[%clk 0:00:04]}  Bd7 {[%clk 0:00:09]} 42. Kd3 {[%clk 0:00:03]}  Bxb5 {[%clk 0:00:09]} 43. cxb5 {[%clk 0:00:04]}  Ra4 {[%clk 0:00:10]} 44. a6 {[%clk 0:00:05]}  bxa6 {[%clk 0:00:10]} 45. bxa6 {[%clk 0:00:06]}  Rxa6 {[%clk 0:00:11]} 46. e4 {[%clk 0:00:06]}  Ra4 {[%clk 0:00:11]} 47. Ke3 {[%clk 0:00:07]}  Kd6 {[%clk 0:00:11]} 48. Kf4 {[%clk 0:00:08]}  Ke6 {[%clk 0:00:12]} 49. Kg5 {[%clk 0:00:08]}  Rxe4 {[%clk 0:00:11]} 50. Kh5 {[%clk 0:00:09]}  Re1 {[%clk 0:00:11]} 51. Kg5 {[%clk 0:00:10]}  Rf1 {[%clk 0:00:12]} 52. Kh5 {[%clk 0:00:08]}  Rg1 {[%clk 0:00:11]} 53. Kh6 {[%clk 0:00:09]}  Kf5 {[%clk 0:00:11]} 54. Kh7 {[%clk 0:00:10]}  Kf6 {[%clk 0:00:12]} 55. Kh8 {[%clk 0:00:11]}  Kf5 {[%clk 0:00:12]} 56. Kh7 {[%clk 0:00:12]}  Ke5 {[%clk 0:00:12]} 57. Kh8 {[%clk 0:00:13]}  f5 {[%clk 0:00:12]} 58. Kh7 {[%clk 0:00:13]}  f4 {[%clk 0:00:13]} 59. Kh8 {[%clk 0:00:14]}  f3 {[%clk 0:00:13]} 60. Kh7 {[%clk 0:00:15]}  f2 {[%clk 0:00:14]} 61. Kh6 {[%clk 0:00:16]}  f1=Q {[%clk 0:00:14]} 62. Kh7 {[%clk 0:00:17]}  Rg2 {[%clk 0:00:15]} 63. Kh8 {[%clk 0:00:18]}  Qh1# {[%clk 0:00:15]} 0-1

[Event "December 5 Early 2023"]
[Site "https://www.chess.com"]
[Date "2023.12.05"]
[Round "4"]
[White "Espinoza Villanueva, Rodrigo"]
[Black "Romero Arzuaga, Yudel"]
[Result "1-0"]
[Board "124"]
[TimeControl "180+1"]
[WhiteFideId "5140188"]
[BlackFideId "3521010"]
[WhiteElo "2606"]
[BlackElo "2428"]
[WhiteTeam "MEX"]
[BlackTeam "CUB"]
[WhiteClock "0:01:56"]
[BlackClock "0:01:38"]

1. d4 {[%clk 0:03:00]}  d5 {[%clk 0:03:00]} 2. c4 {[%clk 0:03:01]}  e6 {[%clk 0:03:01]} 3. Nc3 {[%clk 0:03:01]}  Nf6 {[%clk 0:03:01]} 4. Nf3 {[%clk 0:03:02]}  Nbd7 {[%clk 0:03:01]} 5. Bg5 {[%clk 0:03:01]}  Be7 {[%clk 0:03:00]} 6. e3 {[%clk 0:03:02]}  O-O {[%clk 0:03:01]} 7. Rc1 {[%clk 0:03:02]}  h6 {[%clk 0:03:01]} 8. Bh4 {[%clk 0:03:02]}  c6 {[%clk 0:03:01]} 9. a3 {[%clk 0:03:01]}  dxc4 {[%clk 0:03:02]} 10. Bxc4 {[%clk 0:03:01]}  Nd5 {[%clk 0:03:03]} 11. Bxe7 {[%clk 0:03:00]}  Qxe7 {[%clk 0:03:04]} 12. O-O {[%clk 0:02:58]}  Nxc3 {[%clk 0:03:02]} 13. Rxc3 {[%clk 0:02:57]}  b6 {[%clk 0:02:57]} 14. Bd3 {[%clk 0:02:52]}  c5 {[%clk 0:02:57]} 15. Be4 {[%clk 0:02:50]}  Rb8 {[%clk 0:02:57]} 16. Qc2 {[%clk 0:02:47]}  Bb7 {[%clk 0:02:46]} 17. Bxb7 {[%clk 0:02:47]}  Rxb7 {[%clk 0:02:47]} 18. Rc1 {[%clk 0:02:45]}  cxd4 {[%clk 0:02:44]} 19. Nxd4 {[%clk 0:02:45]}  Nf6 {[%clk 0:02:43]} 20. Rc7 {[%clk 0:02:43]}  Rxc7 {[%clk 0:02:23]} 21. Qxc7 {[%clk 0:02:44]}  Re8 {[%clk 0:02:18]} 22. Nb5 {[%clk 0:02:37]}  Nd5 {[%clk 0:02:14]} 23. Qxa7 {[%clk 0:02:31]}  Qf6 {[%clk 0:02:08]} 24. Nd4 {[%clk 0:02:24]}  Qg5 {[%clk 0:02:00]} 25. Nf3 {[%clk 0:02:10]}  Qf6 {[%clk 0:01:54]} 26. Rc2 {[%clk 0:02:01]}  Qf5 {[%clk 0:01:49]} 27. Qa4 {[%clk 0:01:57]}  Qd3 {[%clk 0:01:38]} 28. Qxe8+ {[%clk 0:01:56]} 1-0

[Event "December 5 Early 2023"]
[Site "https://www.chess.com"]
[Date "2023.12.05"]
[Round "4"]
[White "Onslow, Alfie"]
[Black "Thorfinnsson, Bjorn"]
[Result "0-1"]
[Board "129"]
[TimeControl "180+1"]
[WhiteFideId "436976"]
[BlackFideId "2300982"]
[WhiteElo "2191"]
[BlackElo "2544"]
[WhiteTeam "ENG"]
[BlackTeam "ISL"]
[WhiteClock "0:00:24"]
[BlackClock "0:01:10"]

1. Nf3 {[%clk 0:02:55]}  d5 {[%clk 0:02:58]} 2. c4 {[%clk 0:02:54]}  c6 {[%clk 0:02:58]} 3. e3 {[%clk 0:02:54]}  Nf6 {[%clk 0:02:44]} 4. Nc3 {[%clk 0:02:54]}  e6 {[%clk 0:02:44]} 5. Qc2 {[%clk 0:02:53]}  Be7 {[%clk 0:02:44]} 6. b3 {[%clk 0:02:53]}  Nbd7 {[%clk 0:02:43]} 7. Bb2 {[%clk 0:02:54]}  b6 {[%clk 0:02:43]} 8. Be2 {[%clk 0:02:44]}  Bb7 {[%clk 0:02:43]} 9. g4 {[%clk 0:02:31]}  h6 {[%clk 0:02:31]} 10. Rg1 {[%clk 0:02:22]}  Qc7 {[%clk 0:02:15]} 11. Rc1 {[%clk 0:02:09]}  dxc4 {[%clk 0:02:10]} 12. bxc4 {[%clk 0:02:03]}  c5 {[%clk 0:02:08]} 13. d3 {[%clk 0:02:00]}  a6 {[%clk 0:02:03]} 14. h4 {[%clk 0:01:48]}  O-O-O {[%clk 0:01:56]} 15. a4 {[%clk 0:01:35]}  Qd6 {[%clk 0:01:39]} 16. a5 {[%clk 0:01:25]}  Bxf3 {[%clk 0:01:31]} 17. Bxf3 {[%clk 0:01:16]}  Ne5 {[%clk 0:01:31]} 18. Be4 {[%clk 0:01:08]}  Nxe4 {[%clk 0:01:17]} 19. Nxe4 {[%clk 0:01:08]}  Nxd3+ {[%clk 0:01:17]} 20. Kf1 {[%clk 0:01:08]}  Qh2 {[%clk 0:01:15]} 21. Rd1 {[%clk 0:00:24]}  Nxb2 {[%clk 0:01:10]} 0-1

[Event "December 5 Early 2023"]
[Site "https://www.chess.com"]
[Date "2023.12.05"]
[Round "4"]
[White "Damjanovic, Vuk"]
[Black "Swicarz, Maciej"]
[Result "1-0"]
[Board "131"]
[TimeControl "180+1"]
[WhiteFideId "980021"]
[BlackFideId "1113585"]
[WhiteElo "2771"]
[BlackElo "2432"]
[WhiteTeam "SRB"]
[BlackTeam "POL"]
[WhiteClock "0:01:48"]
[BlackClock "0:00:02"]

1. Nf3 {[%clk 0:03:00]}  c5 {[%clk 0:02:59]} 2. e3 {[%clk 0:02:59]}  Nc6 {[%clk 0:02:57]} 3. c4 {[%clk 0:03:00]}  g6 {[%clk 0:02:57]} 4. b3 {[%clk 0:03:01]}  Bg7 {[%clk 0:02:57]} 5. Nc3 {[%clk 0:03:02]}  e6 {[%clk 0:02:56]} 6. Bb2 {[%clk 0:03:01]}  Nge7 {[%clk 0:02:55]} 7. Be2 {[%clk 0:03:02]}  O-O {[%clk 0:02:54]} 8. O-O {[%clk 0:03:02]}  b6 {[%clk 0:02:52]} 9. a3 {[%clk 0:02:50]}  Bb7 {[%clk 0:02:51]} 10. Rc1 {[%clk 0:02:44]}  d5 {[%clk 0:02:49]} 11. cxd5 {[%clk 0:02:38]}  Nxd5 {[%clk 0:02:49]} 12. Qc2 {[%clk 0:02:39]}  Rc8 {[%clk 0:02:34]} 13. Rfd1 {[%clk 0:02:38]}  Nxc3 {[%clk 0:02:23]} 14. Bxc3 {[%clk 0:02:28]}  Qe7 {[%clk 0:02:21]} 15. Qb2 {[%clk 0:02:24]}  e5 {[%clk 0:02:01]} 16. b4 {[%clk 0:02:21]}  cxb4 {[%clk 0:01:56]} 17. axb4 {[%clk 0:02:22]}  f6 {[%clk 0:01:37]} 18. b5 {[%clk 0:02:20]}  Nd4 {[%clk 0:00:37]} 19. exd4 {[%clk 0:02:15]}  exd4 {[%clk 0:00:36]} 20. Nxd4 {[%clk 0:02:16]}  Rfd8 {[%clk 0:00:35]} 21. Bf3 {[%clk 0:02:08]}  Rc4 {[%clk 0:00:30]} 22. Re1 {[%clk 0:02:05]}  Qd7 {[%clk 0:00:27]} 23. Qa2 {[%clk 0:02:00]}  Bd5 {[%clk 0:00:19]} 24. Re7 {[%clk 0:01:55]}  Qxe7 {[%clk 0:00:10]} 25. Bxd5+ {[%clk 0:01:53]}  Rxd5 {[%clk 0:00:11]} 26. Qxc4 {[%clk 0:01:54]}  Qc5 {[%clk 0:00:10]} 27. Qa2 {[%clk 0:01:51]}  f5 {[%clk 0:00:02]} 28. Ne6 {[%clk 0:01:48]} 1-0

[Event "December 5 Early 2023"]
[Site "https://www.chess.com"]
[Date "2023.12.05"]
[Round "4"]
[White "Fier, Alexandr"]
[Black "Escudero Donoso, Felipe"]
[Result "1-0"]
[Board "132"]
[TimeControl "180+1"]
[WhiteFideId "2107139"]
[BlackFideId "3410595"]
[WhiteElo "2740"]
[BlackElo "2429"]
[WhiteTeam "BRA"]
[BlackTeam "CHI"]
[WhiteClock "0:02:48"]
[BlackClock "0:00:02"]

1. Nf3 {[%clk 0:02:57]}  Nf6 {[%clk 0:02:59]} 2. g3 {[%clk 0:02:58]}  c5 {[%clk 0:02:57]} 3. Bg2 {[%clk 0:02:59]}  d5 {[%clk 0:02:57]} 4. O-O {[%clk 0:02:59]}  Nc6 {[%clk 0:02:58]} 5. d4 {[%clk 0:03:00]}  e6 {[%clk 0:02:58]} 6. c4 {[%clk 0:02:59]}  Be7 {[%clk 0:02:58]} 7. cxd5 {[%clk 0:02:59]}  exd5 {[%clk 0:02:59]} 8. dxc5 {[%clk 0:02:59]}  Bxc5 {[%clk 0:02:57]} 9. a3 {[%clk 0:02:59]}  O-O {[%clk 0:02:57]} 10. b4 {[%clk 0:03:00]}  Be7 {[%clk 0:02:57]} 11. Bb2 {[%clk 0:03:00]}  Ne4 {[%clk 0:02:58]} 12. Nbd2 {[%clk 0:03:00]}  Bf6 {[%clk 0:02:56]} 13. Qc2 {[%clk 0:03:00]}  Bf5 {[%clk 0:02:50]} 14. Qb3 {[%clk 0:02:56]}  Be6 {[%clk 0:02:29]} 15. Rad1 {[%clk 0:02:55]}  Bxb2 {[%clk 0:02:22]} 16. Qxb2 {[%clk 0:02:55]}  Qf6 {[%clk 0:02:21]} 17. Qxf6 {[%clk 0:02:52]}  Nxf6 {[%clk 0:02:22]} 18. Nb3 {[%clk 0:02:52]}  b6 {[%clk 0:02:18]} 19. Nfd4 {[%clk 0:02:52]}  Nxd4 {[%clk 0:02:17]} 20. Nxd4 {[%clk 0:02:53]}  Rac8 {[%clk 0:02:13]} 21. Rc1 {[%clk 0:02:53]}  Rxc1 {[%clk 0:02:04]} 22. Rxc1 {[%clk 0:02:54]}  Rc8 {[%clk 0:02:04]} 23. Rxc8+ {[%clk 0:02:53]}  Bxc8 {[%clk 0:02:05]} 24. Nc6 {[%clk 0:02:54]}  Ba6 {[%clk 0:01:57]} 25. e3 {[%clk 0:02:53]}  Bb5 {[%clk 0:00:51]} 26. Nxa7 {[%clk 0:02:51]}  Bd7 {[%clk 0:00:50]} 27. Bf1 {[%clk 0:02:51]}  Ne4 {[%clk 0:00:48]} 28. Nb5 {[%clk 0:02:49]}  Nd2 {[%clk 0:00:44]} 29. Nc3 {[%clk 0:02:48]}  Bc6 {[%clk 0:00:33]} 30. Bg2 {[%clk 0:02:47]}  Nc4 {[%clk 0:00:32]} 31. a4 {[%clk 0:02:46]}  Nb2 {[%clk 0:00:08]} 32. a5 {[%clk 0:02:46]}  bxa5 {[%clk 0:00:08]} 33. bxa5 {[%clk 0:02:47]}  Nc4 {[%clk 0:00:02]} 34. a6 {[%clk 0:02:48]} 1-0

[Event "December 5 Early 2023"]
[Site "https://www.chess.com"]
[Date "2023.12.05"]
[Round "4"]
[White "Can, Melih Kaan"]
[Black "Tasev, Dejan"]
[Result "0-1"]
[Board "134"]
[TimeControl "180+1"]
[WhiteFideId "6317383"]
[BlackFideId "936618"]
[WhiteElo "2429"]
[BlackElo "2658"]
[WhiteTeam "TUR"]
[BlackTeam "SRB"]
[WhiteClock "0:00:05"]
[BlackClock "0:00:20"]

1. e4 {[%clk 0:02:59]}  Nf6 {[%clk 0:02:59]} 2. e5 {[%clk 0:02:59]}  Nd5 {[%clk 0:02:59]} 3. c4 {[%clk 0:03:00]}  Nb6 {[%clk 0:02:59]} 4. d4 {[%clk 0:03:01]}  d6 {[%clk 0:02:59]} 5. f4 {[%clk 0:03:01]}  g6 {[%clk 0:02:58]} 6. Nf3 {[%clk 0:02:58]}  Bg7 {[%clk 0:02:58]} 7. Be2 {[%clk 0:02:56]}  O-O {[%clk 0:02:57]} 8. Be3 {[%clk 0:02:52]}  Bg4 {[%clk 0:02:56]} 9. O-O {[%clk 0:02:51]}  d5 {[%clk 0:02:48]} 10. Nbd2 {[%clk 0:02:41]}  dxc4 {[%clk 0:02:45]} 11. Nxc4 {[%clk 0:02:31]}  Nd5 {[%clk 0:02:40]} 12. Bf2 {[%clk 0:02:28]}  c6 {[%clk 0:02:33]} 13. h3 {[%clk 0:02:16]}  Bxf3 {[%clk 0:02:30]} 14. Bxf3 {[%clk 0:02:16]}  Nxf4 {[%clk 0:02:29]} 15. Qd2 {[%clk 0:01:57]}  Nd5 {[%clk 0:02:28]} 16. Rae1 {[%clk 0:01:54]}  Na6 {[%clk 0:02:23]} 17. Bg4 {[%clk 0:01:21]}  Nac7 {[%clk 0:02:22]} 18. Bg3 {[%clk 0:01:17]}  Ne6 {[%clk 0:02:10]} 19. Bxe6 {[%clk 0:01:03]}  fxe6 {[%clk 0:02:09]} 20. Rxf8+ {[%clk 0:01:04]}  Qxf8 {[%clk 0:02:06]} 21. Rf1 {[%clk 0:00:56]}  Qe8 {[%clk 0:01:55]} 22. Qf2 {[%clk 0:00:52]}  Bh6 {[%clk 0:01:51]} 23. Kh1 {[%clk 0:00:47]}  b5 {[%clk 0:01:36]} 24. Nd2 {[%clk 0:00:33]}  Qf8 {[%clk 0:01:12]} 25. Qe2 {[%clk 0:00:27]}  Qg7 {[%clk 0:01:10]} 26. Ne4 {[%clk 0:00:23]}  Rf8 {[%clk 0:00:52]} 27. Rxf8+ {[%clk 0:00:18]}  Qxf8 {[%clk 0:00:51]} 28. Qg4 {[%clk 0:00:18]}  Qf1+ {[%clk 0:00:43]} 29. Kh2 {[%clk 0:00:18]}  Be3 {[%clk 0:00:24]} 30. Qxe6+ {[%clk 0:00:17]}  Kg7 {[%clk 0:00:25]} 31. Bf2 {[%clk 0:00:15]}  Bxf2 {[%clk 0:00:21]} 32. Nxf2 {[%clk 0:00:15]}  Qxf2 {[%clk 0:00:22]} 33. Qxc6 {[%clk 0:00:14]}  Qf4+ {[%clk 0:00:20]} 34. Kh1 {[%clk 0:00:12]}  Qxd4 {[%clk 0:00:21]} 35. Qxb5 {[%clk 0:00:10]}  Qxe5 {[%clk 0:00:21]} 36. Qb7 {[%clk 0:00:08]}  a5 {[%clk 0:00:20]} 37. a4 {[%clk 0:00:08]}  h6 {[%clk 0:00:20]} 38. Qb4 {[%clk 0:00:05]}  axb4 {[%clk 0:00:20]} 0-1

[Event "December 5 Early 2023"]
[Site "https://www.chess.com"]
[Date "2023.12.05"]
[Round "4"]
[White "Kovalyov, Eduard"]
[Black "Spata, German"]
[Result "0-1"]
[Board "136"]
[TimeControl "180+1"]
[WhiteFideId "14118033"]
[BlackFideId "113026"]
[WhiteElo "2425"]
[BlackElo "2641"]
[WhiteTeam "UKR"]
[BlackTeam "ARG"]
[WhiteClock "0:00:00"]
[BlackClock "0:00:08"]

1. d4 {[%clk 0:02:57]}  Nf6 {[%clk 0:02:58]} 2. c4 {[%clk 0:02:57]}  g6 {[%clk 0:02:58]} 3. Nc3 {[%clk 0:02:57]}  Bg7 {[%clk 0:02:59]} 4. e4 {[%clk 0:02:57]}  d6 {[%clk 0:02:59]} 5. Be2 {[%clk 0:02:57]}  O-O {[%clk 0:03:00]} 6. Be3 {[%clk 0:02:57]}  e5 {[%clk 0:02:57]} 7. d5 {[%clk 0:02:57]}  a5 {[%clk 0:02:55]} 8. g4 {[%clk 0:02:53]}  Na6 {[%clk 0:02:54]} 9. h4 {[%clk 0:02:41]}  Nc5 {[%clk 0:02:54]} 10. f3 {[%clk 0:02:42]}  c6 {[%clk 0:02:45]} 11. Qd2 {[%clk 0:02:37]}  cxd5 {[%clk 0:02:44]} 12. cxd5 {[%clk 0:02:37]}  a4 {[%clk 0:02:40]} 13. h5 {[%clk 0:02:35]}  Qa5 {[%clk 0:02:36]} 14. O-O-O {[%clk 0:02:25]}  Bd7 {[%clk 0:02:16]} 15. Kb1 {[%clk 0:02:11]}  Nb3 {[%clk 0:02:09]} 16. Qd3 {[%clk 0:01:59]}  Rfc8 {[%clk 0:02:02]} 17. axb3 {[%clk 0:01:47]}  axb3 {[%clk 0:02:02]} 18. Kc1 {[%clk 0:01:47]}  Qa1+ {[%clk 0:01:56]} 19. Qb1 {[%clk 0:01:43]}  Rxc3+ {[%clk 0:01:48]} 20. Kd2 {[%clk 0:01:43]}  Qxb1 {[%clk 0:00:53]} 21. Rxb1 {[%clk 0:01:41]}  Rc2+ {[%clk 0:00:53]} 22. Ke1 {[%clk 0:01:40]}  Ra2 {[%clk 0:00:51]} 23. Bc1 {[%clk 0:01:37]}  Ne8 {[%clk 0:00:45]} 24. Bd3 {[%clk 0:01:26]}  Rc8 {[%clk 0:00:43]} 25. Ne2 {[%clk 0:01:20]}  Nc7 {[%clk 0:00:41]} 26. h6 {[%clk 0:01:08]}  Bf6 {[%clk 0:00:40]} 27. Nc3 {[%clk 0:00:57]}  Raa8 {[%clk 0:00:38]} 28. g5 {[%clk 0:00:53]}  Bd8 {[%clk 0:00:35]} 29. Bc4 {[%clk 0:00:49]}  Na6 {[%clk 0:00:35]} 30. Bxb3 {[%clk 0:00:48]}  Nb4 {[%clk 0:00:32]} 31. Ke2 {[%clk 0:00:44]}  Bb6 {[%clk 0:00:30]} 32. Be3 {[%clk 0:00:44]}  Bxe3 {[%clk 0:00:30]} 33. Kxe3 {[%clk 0:00:45]}  Na6 {[%clk 0:00:31]} 34. Ba4 {[%clk 0:00:36]}  Rxc3+ {[%clk 0:00:28]} 35. bxc3 {[%clk 0:00:36]}  Bxa4 {[%clk 0:00:29]} 36. Rxb7 {[%clk 0:00:35]}  Nc5 {[%clk 0:00:29]} 37. Rb6 {[%clk 0:00:30]}  Rd8 {[%clk 0:00:25]} 38. Rhb1 {[%clk 0:00:27]}  Kf8 {[%clk 0:00:25]} 39. Rb8 {[%clk 0:00:23]}  Rxb8 {[%clk 0:00:19]} 40. Rxb8+ {[%clk 0:00:24]}  Be8 {[%clk 0:00:19]} 41. f4 {[%clk 0:00:18]}  exf4+ {[%clk 0:00:18]} 42. Kxf4 {[%clk 0:00:19]}  Ke7 {[%clk 0:00:18]} 43. Ra8 {[%clk 0:00:15]}  Nd3+ {[%clk 0:00:17]} 44. Ke3 {[%clk 0:00:15]}  Ne5 {[%clk 0:00:17]} 45. Rb8 {[%clk 0:00:13]}  Nd7 {[%clk 0:00:17]} 46. Ra8 {[%clk 0:00:12]}  Ne5 {[%clk 0:00:17]} 47. Rb8 {[%clk 0:00:12]}  Nd7 {[%clk 0:00:17]} 48. Ra8 {[%clk 0:00:12]}  f6 {[%clk 0:00:18]} 49. Kf4 {[%clk 0:00:10]}  fxg5+ {[%clk 0:00:17]} 50. Kxg5 {[%clk 0:00:11]}  Ne5 {[%clk 0:00:16]} 51. Ra7+ {[%clk 0:00:10]}  Bd7 {[%clk 0:00:17]} 52. Ra8 {[%clk 0:00:10]}  Nf7+ {[%clk 0:00:17]} 53. Kf4 {[%clk 0:00:09]}  g5+ {[%clk 0:00:16]} 54. Ke3 {[%clk 0:00:09]}  Nxh6 {[%clk 0:00:16]} 55. Rh8 {[%clk 0:00:09]}  Ng4+ {[%clk 0:00:17]} 56. Kd4 {[%clk 0:00:07]}  Nf6 {[%clk 0:00:17]} 57. e5 {[%clk 0:00:06]}  dxe5+ {[%clk 0:00:17]} 58. Kxe5 {[%clk 0:00:07]}  h5 {[%clk 0:00:15]} 59. d6+ {[%clk 0:00:07]}  Kf7 {[%clk 0:00:15]} 60. Ra8 {[%clk 0:00:04]}  g4 {[%clk 0:00:15]} 61. c4 {[%clk 0:00:03]}  g3 {[%clk 0:00:14]} 62. Ra1 {[%clk 0:00:04]}  h4 {[%clk 0:00:13]} 63. Rf1 {[%clk 0:00:00]}  g2 {[%clk 0:00:08]} 0-1

[Event "December 5 Early 2023"]
[Site "https://www.chess.com"]
[Date "2023.12.05"]
[Round "4"]
[White "Skaric, Djuro"]
[Black "Kotlyar, Kirill"]
[Result "0-1"]
[Board "139"]
[TimeControl "180+1"]
[WhiteFideId "934569"]
[BlackFideId "24145599"]
[WhiteElo "2413"]
[BlackElo "2625"]
[WhiteTeam "SRB"]
[BlackTeam "RUS"]
[WhiteClock "0:00:39"]
[BlackClock "0:00:22"]

1. g3 {[%clk 0:03:00]}  Nf6 {[%clk 0:02:52]} 2. Bg2 {[%clk 0:03:01]}  g6 {[%clk 0:02:51]} 3. d3 {[%clk 0:03:01]}  Bg7 {[%clk 0:02:52]} 4. Nc3 {[%clk 0:03:01]}  d5 {[%clk 0:02:52]} 5. Nf3 {[%clk 0:03:01]}  O-O {[%clk 0:02:52]} 6. O-O {[%clk 0:03:01]}  c5 {[%clk 0:02:48]} 7. h3 {[%clk 0:03:00]}  Nc6 {[%clk 0:02:48]} 8. e4 {[%clk 0:03:00]}  e5 {[%clk 0:02:45]} 9. Nd2 {[%clk 0:02:59]}  dxe4 {[%clk 0:02:37]} 10. dxe4 {[%clk 0:02:58]}  Nd4 {[%clk 0:02:20]} 11. f4 {[%clk 0:02:56]}  exf4 {[%clk 0:02:16]} 12. gxf4 {[%clk 0:02:55]}  Qe7 {[%clk 0:02:07]} 13. e5 {[%clk 0:02:54]}  Nh5 {[%clk 0:02:07]} 14. Nde4 {[%clk 0:02:52]}  Qh4 {[%clk 0:02:00]} 15. Ng5 {[%clk 0:02:37]}  h6 {[%clk 0:01:53]} 16. Nf3 {[%clk 0:02:36]}  Qg3 {[%clk 0:01:28]} 17. Ne4 {[%clk 0:02:35]}  Nxf3+ {[%clk 0:01:25]} 18. Rxf3 {[%clk 0:02:34]}  Qh4 {[%clk 0:01:14]} 19. Nxc5 {[%clk 0:02:23]}  b6 {[%clk 0:01:05]} 20. Qd5 {[%clk 0:02:21]}  Rb8 {[%clk 0:01:02]} 21. Qd6 {[%clk 0:02:20]}  Bf5 {[%clk 0:00:47]} 22. Nd3 {[%clk 0:02:16]}  Be4 {[%clk 0:00:45]} 23. Rf2 {[%clk 0:02:12]}  Bxg2 {[%clk 0:00:46]} 24. Kxg2 {[%clk 0:02:10]}  Qg3+ {[%clk 0:00:46]} 25. Kf1 {[%clk 0:02:10]}  Qxh3+ {[%clk 0:00:46]} 26. Ke2 {[%clk 0:02:06]}  Rbd8 {[%clk 0:00:47]} 27. Qb4 {[%clk 0:02:04]}  Ng3+ {[%clk 0:00:47]} 28. Kd2 {[%clk 0:02:02]}  Nf5 {[%clk 0:00:45]} 29. Kc3 {[%clk 0:02:01]}  Rc8+ {[%clk 0:00:44]} 30. Kb3 {[%clk 0:01:59]}  Rfd8 {[%clk 0:00:42]} 31. a3 {[%clk 0:01:29]}  Nd4+ {[%clk 0:00:30]} 32. Ka2 {[%clk 0:01:28]}  Nxc2 {[%clk 0:00:30]} 33. Qe4 {[%clk 0:01:16]}  Qxd3 {[%clk 0:00:28]} 34. Qxd3 {[%clk 0:01:15]}  Rxd3 {[%clk 0:00:29]} 35. Rd2 {[%clk 0:01:13]}  Rxd2 {[%clk 0:00:27]} 36. Bxd2 {[%clk 0:01:14]}  Nd4 {[%clk 0:00:27]} 37. Re1 {[%clk 0:01:10]}  Ne6 {[%clk 0:00:27]} 38. Rf1 {[%clk 0:01:08]}  Nd4 {[%clk 0:00:27]} 39. Bc3 {[%clk 0:01:06]}  Nf5 {[%clk 0:00:27]} 40. Rf3 {[%clk 0:01:05]}  h5 {[%clk 0:00:28]} 41. b4 {[%clk 0:00:59]}  Rc4 {[%clk 0:00:27]} 42. Kb3 {[%clk 0:00:58]}  Re4 {[%clk 0:00:28]} 43. Bd2 {[%clk 0:00:58]}  h4 {[%clk 0:00:27]} 44. Kc3 {[%clk 0:00:54]}  Re2 {[%clk 0:00:25]} 45. Kd3 {[%clk 0:00:53]}  Rg2 {[%clk 0:00:26]} 46. Be1 {[%clk 0:00:52]}  Ra2 {[%clk 0:00:22]} 47. Ke4 {[%clk 0:00:52]}  Kf8 {[%clk 0:00:20]} 48. Rh3 {[%clk 0:00:51]}  Re2+ {[%clk 0:00:20]} 49. Kd5 {[%clk 0:00:50]}  Rxe1 {[%clk 0:00:20]} 50. Kc6 {[%clk 0:00:50]}  Rg1 {[%clk 0:00:20]} 51. Kb7 {[%clk 0:00:50]}  Rg3 {[%clk 0:00:21]} 52. Rh2 {[%clk 0:00:39]}  Rxa3 {[%clk 0:00:22]} 0-1